bitfinex/quotes_SOLUSD_20220129
["timestamp","ask_amount","ask_price","bid_price","bid_amount"]
[1643470840791,0.25,95.288,95.191,2.54452056]
[1643470840991,2.85197945,95.334,95.201,6.0]
[1643470841191,2.85197945,95.354,95.21,12.61]
[1643470841390,0.25,95.333,95.211,103.0]
[1643470841590,0.25,95.333,95.222,103.0]
[1643470841790,0.25,95.333,95.23,12.61]
[1643470842390,2.85197945,95.32,95.23,12.61]
[1643470842590,2.85197945,95.314,95.2,12.61]
[1643470842790,2.85197945,95.312,95.213,0.25]
[1643470842990,3.10197945,95.313,95.213,0.25]
[1643470843194,2.85197945,95.313,95.213,0.25]
[1643470843392,3.10197945,95.312,95.213,0.25]
[1643470843791,3.10197945,95.312,95.201,0.25]
[1643470843992,2.95669142,95.311,95.201,0.25]
[1643470844192,5.80867087,95.311,95.201,0.25]
[1643470844391,0.25,95.31,95.201,0.25]
[1643470844592,3.20669142,95.31,95.201,103.25]
[1643470844808,2.95669142,95.309,95.201,103.25]
[1643470845195,2.85197945,95.312,95.202,20.92230256]
[1643470845393,36.70918957,95.319,95.211,6.0]
[1643470845593,33.85721012,95.319,95.213,103.0]
[1643470845793,33.85721012,95.319,95.214,0.25]
[1643470845994,33.85721012,95.319,95.223,6.0]
[1643470846392,33.85721012,95.319,95.224,2.84255194]
[1643470846593,0.25,95.318,95.234,6.0]
[1643470846795,0.25,95.318,95.235,0.25]
[1643470846994,0.25,95.318,95.241,6.0]
[1643470847197,0.25,95.318,95.242,103.0]
[1643470847396,15.753,95.34,95.242,103.0]
[1643470847397,2.85197945,95.325,95.242,103.25]
[1643470847594,2.85197945,95.326,95.243,2.59255194]
[1643470847797,2.85197945,95.337,95.244,0.25]
[1643470847996,2.85197945,95.336,95.244,0.25]
[1643470848195,2.85197945,95.338,95.244,0.25]
[1643470848499,33.51458805,95.335,95.245,2.59255194]
[1643470848695,33.51458805,95.335,95.25,12.61]
[1643470848896,33.51458805,95.335,95.251,103.25]
[1643470849497,33.51458805,95.335,95.251,103.0]
[1643470849698,2.85197945,95.328,95.251,103.0]
[1643470850099,2.85197945,95.323,95.251,103.0]
[1643470850498,2.85197945,95.321,95.251,103.0]
[1643470850699,2.85197945,95.325,95.251,103.0]
[1643470850904,0.25,95.32,95.251,103.0]
[1643470851900,2.85197945,95.318,95.251,103.0]
[1643470852100,2.85197945,95.319,95.251,103.0]
[1643470852298,0.25,95.317,95.251,103.0]
[1643470853300,2.85197945,95.324,95.251,103.0]
[1643470853500,2.85197945,95.319,95.251,103.0]
[1643470853900,0.25,95.318,95.251,103.0]
[1643470854101,3.10197945,95.318,95.251,103.0]
[1643470854302,0.25,95.318,95.251,103.0]
[1643470855107,0.25,95.322,95.251,103.0]
[1643470855303,3.10197945,95.322,95.251,103.0]
[1643470855708,2.85197945,95.321,95.251,103.0]
[1643470855908,0.25,95.32,95.251,103.0]
[1643470856510,2.85197945,95.319,95.251,103.0]
[1643470856712,2.85197945,95.318,95.251,103.0]
[1643470856912,3.10197945,95.318,95.251,103.0]
[1643470857110,37.67351179,95.32,95.251,103.0]
[1643470857310,2.85197945,95.323,95.252,0.25]
[1643470857511,15.754,95.33,95.252,0.25]
[1643470857713,2.85197945,95.333,95.252,0.25]
[1643470858213,2.85197945,95.332,95.252,0.25]
[1643470858512,2.85197945,95.325,95.252,0.25]
[1643470858813,2.85197945,95.321,95.252,0.25]
[1643470859315,3.10197945,95.32,95.252,0.25]
[1643470859513,2.85197945,95.319,95.252,0.25]
[1643470859711,2.85197945,95.318,95.252,0.25]
[1643470859914,38.38086504,95.317,95.252,0.25]
[1643470860713,38.38086504,95.317,95.251,103.0]
[1643470860917,2.85197945,95.315,95.251,103.0]
[1643470861114,2.85197945,95.314,95.251,103.0]
[1643470861514,2.85197945,95.31,95.251,103.0]
[1643470862015,0.25,95.309,95.251,103.0]
[1643470863315,2.85197945,95.31,95.251,103.0]
[1643470863515,2.85197945,95.309,95.251,103.0]
[1643470864313,2.85197945,95.308,95.251,103.0]
[1643470864514,2.85197945,95.306,95.251,103.0]
[1643470864718,2.85197945,95.305,95.251,103.0]
[1643470865118,2.85197945,95.304,95.251,103.0]
[1643470865421,2.85197945,95.304,95.252,2.59255194]
[1643470865618,2.85197945,95.304,95.252,2.84255194]
[1643470865818,2.85197945,95.306,95.262,6.0]
[1643470866023,2.85197945,95.317,95.263,103.0]
[1643470866225,2.85197945,95.318,95.263,103.25]
[1643470866653,4.15017489,95.344,95.264,2.59255194]
[1643470866654,2.85197945,95.319,95.264,2.59255194]
[1643470866854,2.85197945,95.324,95.265,0.25]
[1643470867058,2.85197945,95.324,95.28,12.61]
[1643470867255,2.85197945,95.34,95.281,103.25]
[1643470867455,2.85197945,95.344,95.291,103.0]
[1643470867654,2.85197945,95.345,95.3,12.61]
[1643470867864,2.85197945,95.355,95.301,0.25]
[1643470868058,2.85197945,95.359,95.301,0.25]
[1643470868457,2.85197945,95.359,95.3,12.61]
[1643470868664,2.85197945,95.359,95.301,0.25]
[1643470868861,2.85197945,95.358,95.301,0.25]
[1643470869258,2.85197945,95.361,95.301,103.25]
[1643470869858,2.85197945,95.36,95.301,103.25]
[1643470870360,2.85197945,95.358,95.301,103.25]
[1643470870565,2.85197945,95.363,95.301,103.25]
[1643470870760,0.25,95.362,95.28,12.61]
[1643470870967,0.25,95.362,95.262,103.0]
[1643470871164,2.85197945,95.351,95.262,103.0]
[1643470871361,2.85197945,95.346,95.262,103.0]
[1643470871563,0.25,95.35,95.262,103.0]
[1643470871564,2.85197945,95.343,95.262,103.0]
[1643470871860,32.77295623,95.345,95.262,103.0]
[1643470871861,2.85197945,95.334,95.262,103.0]
[1643470872063,2.85197945,95.331,95.24,12.61]
[1643470872260,42.15341579,95.32,95.24,12.61]
[1643470872662,3.10197945,95.319,95.24,12.61]
[1643470872959,2.85197945,95.318,95.24,12.61]
[1643470873172,2.85197945,95.317,95.24,12.61]
[1643470873362,10.65430308,95.317,95.228,103.0]
[1643470873560,2.85197945,95.31,95.206,23.6892]
[1643470873761,40.6775374,95.303,95.206,23.6892]
[1643470874060,7.80232363,95.302,95.19,12.61]
[1643470874260,2.85197945,95.299,95.19,28.0767]
[1643470874461,2.85197945,95.298,95.19,12.61]
[1643470874660,3.10197945,95.298,95.191,0.25]
[1643470874861,7.80232363,95.297,95.191,0.25]
[1643470875060,2.85197945,95.295,95.191,0.25]
[1643470875260,2.85197945,95.294,95.191,0.25]
[1643470875461,10.90430308,95.294,95.19,12.61]
[1643470875666,2.85197945,95.293,95.19,12.61]
[1643470875861,3.10197945,95.292,95.19,12.61]
[1643470876262,7.80232363,95.291,95.19,12.61]
[1643470876462,34.29417808,95.286,95.19,12.61]
[1643470876665,37.14615753,95.286,95.19,12.61]
[1643470876863,0.25,95.285,95.19,12.61]
[1643470877064,8.05232363,95.285,95.191,18.57975062]
[1643470877465,7.80232363,95.284,95.191,18.57975062]
[1643470877964,10.65430308,95.296,95.191,18.57975062]
[1643470878168,43.03661745,95.295,95.191,18.57975062]
[1643470878364,7.80232363,95.295,95.192,18.32975062]
[1643470878563,7.80232363,95.295,95.203,103.0]
[1643470878763,7.80232363,95.297,95.204,0.25]
[1643470879164,7.80232363,95.3,95.204,0.25]
[1643470879566,7.80232363,95.303,95.204,0.25]
[1643470879764,0.25,95.302,95.204,0.25]
[1643470880366,7.80232363,95.301,95.204,0.25]
[1643470880773,0.25,95.3,95.204,0.25]
[1643470881175,7.80232363,95.299,95.204,0.25]
[1643470881372,0.25,95.298,95.205,103.0]
[1643470881768,0.25,95.298,95.206,0.25]
[1643470881970,7.80232363,95.297,95.206,0.25]
[1643470882369,0.25,95.296,95.206,0.25]
[1643470882770,7.80232363,95.295,95.206,0.25]
[1643470882969,7.80232363,95.295,95.21,12.61]
[1643470883170,7.80232363,95.305,95.216,103.0]
[1643470883371,7.80232363,95.305,95.23,12.61]
[1643470883568,7.80232363,95.31,95.231,103.0]
[1643470883768,7.80232363,95.31,95.233,103.0]
[1643470883972,7.80232363,95.326,95.233,103.0]
[1643470884169,7.80232363,95.326,95.234,0.25]
[1643470884370,0.25,95.325,95.234,0.25]
[1643470884869,7.80232363,95.324,95.234,0.25]
[1643470885369,7.80232363,95.333,95.234,0.25]
[1643470885569,7.80232363,95.323,95.244,103.0]
[1643470885768,7.80232363,95.323,95.245,0.25]
[1643470885971,10.65430308,95.334,95.245,0.25]
[1643470886168,0.25,95.322,95.245,0.25]
[1643470886369,10.90430308,95.333,95.245,0.25]
[1643470886571,8.05232363,95.333,95.245,0.25]
[1643470886868,7.80232363,95.332,95.239,103.0]
[1643470887068,2.85197945,95.331,95.244,0.25]
[1643470887269,0.25,95.331,95.244,0.25]
[1643470887670,7.80232363,95.33,95.244,0.25]
[1643470887871,0.25,95.329,95.244,0.25]
[1643470888271,0.25,95.329,95.24,0.25]
[1643470888578,7.80232363,95.328,95.24,0.25]
[1643470888772,0.25,95.327,95.24,0.25]
[1643470889370,7.80232363,95.326,95.24,0.25]
[1643470889770,0.25,95.325,95.24,0.25]
[1643470889970,7.80232363,95.326,95.24,0.25]
[1643470890171,7.80232363,95.324,95.241,103.0]
[1643470890379,7.80232363,95.324,95.242,0.25]
[1643470890574,7.80232363,95.335,95.242,2.83386365]
[1643470890974,7.80232363,95.339,95.242,2.83386365]
[1643470891377,7.80232363,95.342,95.252,6.0]
[1643470891579,7.80232363,95.342,95.26,15.13]
[1643470891777,7.80232363,95.352,95.261,103.25]
[1643470892178,46.21029047,95.361,95.261,105.83386365]
[1643470892378,46.21029047,95.361,95.262,2.58386365]
[1643470892578,7.80232363,95.36,95.262,2.58386365]
[1643470892803,7.80232363,95.36,95.263,0.25]
[1643470893004,7.80232363,95.365,95.263,0.25]
[1643470893304,7.80232363,95.372,95.264,105.58386365]
[1643470893709,2.85197945,95.377,95.265,2.83386365]
[1643470893710,0.25,95.371,95.265,2.83386365]
[1643470893906,0.25,95.371,95.281,103.0]
[1643470894306,7.80232363,95.37,95.282,0.25]
[1643470894507,0.25,95.369,95.282,26.19126365]
[1643470894706,0.25,95.369,95.282,23.6074]
[1643470894908,0.25,95.369,95.283,0.25]
[1643470895106,7.80232363,95.368,95.283,103.25]
[1643470895306,0.25,95.367,95.283,103.25]
[1643470895706,0.25,95.367,95.284,2.58386365]
[1643470895911,7.80232363,95.366,95.285,0.25]
[1643470896310,7.80232363,95.366,95.286,2.58386365]
[1643470896509,7.80232363,95.366,95.29,15.13]
[1643470896706,10.65430308,95.382,95.29,15.13]
[1643470896908,7.80232363,95.382,95.291,105.83386365]
[1643470897109,7.80232363,95.381,95.291,105.83386365]
[1643470897408,7.80232363,95.388,95.292,2.58386365]
[1643470897907,7.80232363,95.388,95.293,0.25]
[1643470898307,7.80232363,95.389,95.303,103.0]
[1643470898707,7.80232363,95.39,95.304,0.25]
[1643470899109,0.25,95.389,95.304,0.25]
[1643470899410,0.25,95.393,95.304,0.25]
[1643470899609,7.80232363,95.388,95.304,0.25]
[1643470899809,0.25,95.387,95.304,0.25]
[1643470900008,0.25,95.387,95.303,103.0]
[1643470900410,7.80232363,95.386,95.303,103.0]
[1643470900809,0.25,95.385,95.303,103.0]
[1643470901212,7.80232363,95.384,95.303,103.0]
[1643470901513,0.25,95.383,95.304,0.25]
[1643470901912,7.80232363,95.382,95.304,0.25]
[1643470902310,0.25,95.381,95.303,103.0]
[1643470902711,7.80232363,95.38,95.303,103.0]
[1643470902911,45.11618439,95.379,95.303,103.0]
[1643470903112,45.36618439,95.379,95.303,103.0]
[1643470903511,7.80232363,95.378,95.303,103.0]
[1643470903913,0.25,95.377,95.303,103.0]
[1643470904311,0.25,95.377,95.304,0.25]
[1643470904513,7.80232363,95.376,95.304,0.25]
[1643470904915,0.25,95.375,95.304,0.25]
[1643470905314,7.80232363,95.374,95.304,0.25]
[1643470905713,0.25,95.373,95.304,0.25]
[1643470906116,7.80232363,95.372,95.304,0.25]
[1643470906314,0.25,95.371,95.26,15.13]
[1643470906716,15.13,95.37,95.26,15.13]
[1643470906913,31.63752286,95.37,95.248,103.0]
[1643470907114,2.85197945,95.363,95.248,103.0]
[1643470907314,2.85197945,95.36,95.248,103.0]
[1643470907717,8.05232363,95.359,95.248,103.0]
[1643470907915,2.89652836,95.358,95.25,15.13]
[1643470908117,10.69885199,95.358,95.25,15.13]
[1643470908316,0.25,95.357,95.251,0.25]
[1643470908516,15.751,95.35,95.251,0.25]
[1643470908717,2.89652836,95.349,95.251,0.25]
[1643470908919,10.94885199,95.349,95.231,47.8987]
[1643470909117,5.74850781,95.348,95.231,47.8987]
[1643470909321,40.27327001,95.347,95.231,47.8987]
[1643470909517,2.85197945,95.344,95.231,47.8987]
[1643470909918,0.25,95.343,95.232,2.57802886]
[1643470910118,15.752,95.34,95.232,2.57802886]
[1643470910317,3.14652836,95.339,95.233,0.25]
[1643470910519,2.89652836,95.338,95.233,0.25]
[1643470910719,2.89652836,95.338,95.234,2.57802886]
[1643470910928,2.89652836,95.338,95.233,0.25]
[1643470910929,8.05232363,95.337,95.233,0.25]
[1643470911123,2.89652836,95.336,95.233,0.25]
[1643470911325,15.754,95.33,95.232,0.25]
[1643470911525,8.05232363,95.335,95.232,0.25]
[1643470911719,0.25,95.329,95.234,2.57802886]
[1643470911920,7.80232363,95.334,95.234,2.57802886]
[1643470912119,0.25,95.333,95.235,0.25]
[1643470912318,0.25,95.333,95.232,103.25]
[1643470913318,3.10197945,95.34,95.232,103.25]
[1643470913520,40.7553594,95.331,95.232,103.25]
[1643470913924,0.25,95.33,95.232,103.25]
[1643470915926,0.25,95.33,95.242,6.0]
[1643470916123,0.25,95.33,95.243,103.0]
[1643470916322,0.25,95.33,95.243,103.25]
[1643470916826,0.25,95.33,95.243,0.25]
[1643470917027,7.81218744,95.329,95.243,0.25]
[1643470917225,10.72081552,95.329,95.243,0.25]
[1643470917422,3.15862808,95.328,95.241,0.25]
[1643470917623,2.90862808,95.327,95.241,0.25]
[1643470917823,0.25,95.326,95.241,0.25]
[1643470918625,0.25,95.326,95.242,2.57802886]
[1643470918822,0.25,95.326,95.243,0.25]
[1643470919050,2.85197945,95.34,95.253,103.0]
[1643470919051,0.25,95.337,95.253,103.0]
[1643470919226,0.25,95.339,95.253,103.0]
[1643470919427,2.90959073,95.338,95.263,6.0]
[1643470919627,10.72692119,95.338,95.254,0.25]
[1643470919826,0.25,95.337,95.254,0.25]
[1643470920026,10.97692119,95.337,95.254,0.25]
[1643470920230,2.90959073,95.336,95.254,0.25]
[1643470920431,10.72692119,95.336,95.254,0.25]
[1643470920633,3.15959073,95.335,95.245,0.25]
[1643470920833,2.90959073,95.334,95.245,0.25]
[1643470921234,8.06733046,95.333,95.245,0.25]
[1643470921636,10.72692119,95.332,95.245,0.25]
[1643470921833,3.15959073,95.331,95.245,0.25]
[1643470922036,2.90959073,95.33,95.245,0.25]
[1643470922237,0.25,95.329,95.245,0.25]
[1643470922534,2.90959073,95.328,95.245,0.25]
[1643470922934,0.25,95.327,95.245,0.25]
[1643470923335,0.25,95.327,95.251,103.0]
[1643470923837,0.25,95.337,95.252,0.25]
[1643470924035,13.09297775,95.369,95.252,0.25]
[1643470924036,2.91116637,95.336,95.252,0.25]
[1643470924238,2.85197945,95.342,95.252,0.25]
[1643470924437,7.82032566,95.335,95.252,0.25]
[1643470924639,2.91116637,95.334,95.252,0.25]
[1643470924841,2.91116637,95.334,95.253,2.57802886]
[1643470925039,2.91116637,95.34,95.253,2.57802886]
[1643470925240,0.25,95.339,95.254,0.25]
[1643470925440,2.91116637,95.338,95.254,0.25]
[1643470925639,10.73345096,95.338,95.254,0.25]
[1643470925844,3.16116637,95.337,95.254,0.25]
[1643470926042,3.16116637,95.337,95.255,2.57802886]
[1643470926245,0.25,95.337,95.256,0.25]
[1643470926445,2.85197945,95.346,95.261,103.0]
[1643470926663,0.25,95.344,95.261,103.0]
[1643470926861,2.91140004,95.343,95.262,0.25]
[1643470927064,44.32803916,95.343,95.262,0.25]
[1643470927261,3.16140004,95.342,95.262,0.25]
[1643470927468,2.91140004,95.341,95.261,103.0]
[1643470927862,8.0743273,95.34,95.271,6.0]
[1643470928262,0.25,95.34,95.261,103.0]
[1643470928862,2.91343658,95.339,95.262,0.25]
[1643470929061,5.76541603,95.347,95.262,0.25]
[1643470929264,0.25,95.338,95.262,0.25]
[1643470929562,2.91343658,95.337,95.262,0.25]
[1643470929764,0.25,95.336,95.262,0.25]
[1643470931066,2.85197945,95.344,95.262,0.25]
[1643470931264,5.76549128,95.346,95.262,0.25]
[1643470931463,7.82752493,95.343,95.262,0.25]
[1643470931762,2.91351183,95.342,95.262,0.25]
[1643470931962,2.85197945,95.341,95.262,0.25]
[1643470932363,0.25,95.34,95.263,2.57802886]
[1643470932766,0.25,95.34,95.264,0.25]
[1643470932965,2.85197945,95.349,95.264,0.25]
[1643470933166,1.45748865,95.324,95.265,2.57802886]
[1643470933365,1.45748865,95.324,95.27,15.13]
[1643470933567,1.45748865,95.321,95.271,103.0]
[1643470933768,1.45748865,95.321,95.271,105.82802886]
[1643470934172,1.45748865,95.321,95.271,2.57802886]
[1643470934372,1.45748865,95.321,95.27,15.13]
[1643470934576,1.45748865,95.309,95.27,15.13]
[1643470934776,1.45748865,95.307,95.27,15.13]
[1643470934975,1.45748865,95.303,95.27,15.13]
[1643470935179,1.45748865,95.306,95.27,15.13]
[1643470935375,1.45748865,95.307,95.27,15.13]
[1643470935578,1.45748865,95.303,95.27,15.13]
[1643470935775,1.45748865,95.304,95.271,0.25]
[1643470935978,1.45748865,95.302,95.271,0.25]
[1643470936178,1.45748865,95.301,95.27,15.13]
[1643470936580,1.45748865,95.3,95.27,15.13]
[1643470936781,1.45748865,95.303,95.27,15.13]
[1643470937681,1.45748865,95.303,95.271,0.25]
[1643470937879,1.45748865,95.303,95.268,0.25]
[1643470939883,0.25,95.302,95.267,104.9]
[1643470940084,1.45748865,95.301,95.267,104.9]
[1643470940287,1.70748865,95.3,95.267,104.9]
[1643470940483,1.70748865,95.3,95.251,104.9]
[1643470940684,1.45748865,95.299,95.261,104.9]
[1643470940891,1.45748865,95.299,95.262,0.25]
[1643470941185,1.70748865,95.3,95.262,0.25]
[1643470942185,1.45748865,95.304,95.262,0.25]
[1643470942386,1.45748865,95.302,95.262,0.25]
[1643470943192,2.9157156,95.335,95.25,15.13]
[1643470943193,1.45748865,95.3,95.261,0.25]
[1643470943392,0.25,95.301,95.251,105.15]
[1643470943393,1.70748865,95.299,95.251,105.15]
[1643470943693,1.45748865,95.298,95.251,105.15]
[1643470944695,1.45748865,95.297,95.251,105.15]
[1643470944893,1.45748865,95.296,95.251,105.15]
[1643470945919,1.45748865,95.296,95.251,104.9]
[1643470946119,1.45748865,95.293,95.251,104.9]
[1643470946319,0.25,95.292,95.25,15.13]
[1643470946521,0.25,95.292,95.214,18.92374339]
[1643470946522,1.45748865,95.286,95.214,2.57802886]
[1643470946720,1.45748865,95.272,95.19,15.13]
[1643470946922,1.45748865,95.263,95.19,15.13]
[1643470947324,1.45748865,95.258,95.19,15.13]
[1643470947624,1.45748865,95.244,95.166,23.7376]
[1643470947833,0.25,95.262,95.166,23.7376]
[1643470947834,4.41418007,95.257,95.167,104.9]
[1643470948026,0.25,95.243,95.167,104.9]
[1643470948626,0.25,95.243,95.168,0.25]
[1643470949224,0.25,95.253,95.168,0.25]
[1643470949425,0.25,95.255,95.168,0.25]
[1643470949625,1.45748865,95.257,95.167,0.25]
[1643470949827,15.764,95.27,95.167,0.25]
[1643470949828,0.25,95.256,95.167,0.25]
[1643470950226,0.25,95.256,95.167,105.15]
[1643470950432,0.25,95.256,95.167,0.25]
[1643470951025,0.25,95.265,95.167,105.15]
[1643470951227,1.45748865,95.269,95.168,2.57800877]
[1643470951427,1.45748865,95.272,95.168,2.57800877]
[1643470951626,1.45748865,95.272,95.169,0.25]
[1643470951826,1.45748865,95.273,95.169,0.25]
[1643470952127,1.45748865,95.273,95.17,2.57800877]
[1643470952328,1.45748865,95.276,95.171,0.25]
[1643470952529,1.45748865,95.277,95.171,105.15]
[1643470952727,15.759,95.29,95.172,2.57800877]
[1643470952728,1.45748865,95.276,95.172,2.57800877]
[1643470952930,1.45748865,95.277,95.172,2.57800877]
[1643470953129,1.45748865,95.277,95.173,0.25]
[1643470953531,1.45748865,95.278,95.174,2.57095403]
[1643470953729,1.45748865,95.278,95.174,107.47095403]
[1643470953928,1.45748865,95.279,95.175,0.25]
[1643470954131,1.45748865,95.279,95.176,104.9]
[1643470954427,0.25,95.27,95.177,0.25]
[1643470954628,0.25,95.27,95.177,2.82095403]
[1643470954929,0.25,95.27,95.178,2.57095403]
[1643470955330,1.45748865,95.283,95.179,0.25]
[1643470955735,1.45748865,95.283,95.18,2.57095403]
[1643470955946,0.25,95.27,95.18,2.57095403]
[1643470956139,0.25,95.27,95.181,0.25]
[1643470956532,0.25,95.27,95.182,2.57095403]
[1643470956935,0.25,95.27,95.183,0.25]
[1643470957134,1.45748865,95.28,95.183,0.25]
[1643470957438,1.45748865,95.296,95.193,104.9]
[1643470957634,0.25,95.279,95.2,15.13]
[1643470957835,0.25,95.279,95.201,0.25]
[1643470958040,0.25,95.279,95.201,105.15]
[1643470958236,1.45748865,95.297,95.201,107.72095403]
[1643470958435,1.45748865,95.304,95.202,2.57095403]
[1643470958837,1.45748865,95.304,95.203,0.25]
[1643470959236,38.651458,95.303,95.204,2.57095403]
[1643470959436,1.45748865,95.3,95.204,2.57095403]
[1643470959639,15.759,95.29,95.201,104.9]
[1643470960041,1.45748865,95.286,95.201,104.9]
[1643470960237,15.759,95.29,95.202,0.25]
[1643470960840,17.21648865,95.29,95.202,0.25]
[1643470961041,15.759,95.29,95.202,0.25]
[1643470961242,1.45748865,95.292,95.202,0.25]
[1643470961442,0.25,95.291,95.201,104.9]
[1643470961645,1.45748865,95.289,95.201,104.9]
[1643470961839,0.25,95.288,95.201,104.9]
[1643470962040,1.45748865,95.286,95.202,0.25]
[1643470962239,0.25,95.285,95.202,0.25]
[1643470962440,0.25,95.285,95.202,2.82095403]
[1643470962641,0.25,95.285,95.203,2.57095403]
[1643470962840,1.45748865,95.291,95.204,0.25]
[1643470963041,1.45748865,95.292,95.204,0.25]
[1643470963251,1.45748865,95.292,95.205,2.57095403]
[1643470963443,1.45748865,95.292,95.207,104.9]
[1643470963846,1.45748865,95.29,95.208,0.25]
[1643470964246,1.70748865,95.289,95.208,0.25]
[1643470964846,1.45748865,95.288,95.208,0.25]
[1643470965352,0.25,95.287,95.208,0.25]
[1643470965544,1.45748865,95.289,95.208,0.25]
[1643470965746,1.45748865,95.291,95.208,0.25]
[1643470965945,1.45748865,95.288,95.208,0.25]
[1643470966143,1.45748865,95.289,95.208,0.25]
[1643470967143,1.45748865,95.29,95.209,2.57095403]
[1643470967344,0.25,95.289,95.21,0.25]
[1643470967744,0.25,95.291,95.211,2.57095403]
[1643470967948,1.45748865,95.287,95.211,2.57095403]
[1643470968145,1.45748865,95.286,95.212,0.25]
[1643470968548,0.25,95.285,95.212,0.25]
[1643470968845,1.45748865,95.285,95.212,0.25]
[1643470969251,1.45748865,95.285,95.207,104.9]
[1643470969252,1.45748865,95.288,95.208,0.25]
[1643470969451,1.45748865,95.286,95.208,0.25]
[1643470970053,1.45748865,95.287,95.208,0.25]
[1643470970861,1.45748865,95.284,95.208,0.25]
[1643470971882,1.45748865,95.283,95.208,0.25]
[1643470972482,1.45748865,95.279,95.208,0.25]
[1643470972883,39.07169516,95.274,95.208,0.25]
[1643470973288,0.25,95.273,95.199,2.57067232]
[1643470973487,1.45748865,95.268,95.179,2.57067232]
[1643470973683,1.45748865,95.26,95.167,104.9]
[1643470973883,0.25,95.273,95.167,104.9]
[1643470973884,1.45748865,95.258,95.167,104.9]
[1643470974083,1.45748865,95.257,95.167,104.9]
[1643470974285,0.25,95.256,95.167,104.9]
[1643470974684,1.45748865,95.258,95.167,104.9]
[1643470974883,39.07169516,95.274,95.168,2.57067232]
[1643470974884,1.45748865,95.251,95.168,2.57067232]
[1643470975084,1.45748865,95.258,95.18,15.13]
[1643470975285,1.45748865,95.264,95.182,104.9]
[1643470975486,1.45748865,95.265,95.191,104.9]
[1643470975686,1.45748865,95.268,95.191,110.9]
[1643470975988,1.45748865,95.265,95.192,0.25]
[1643470976385,1.45748865,95.264,95.192,0.25]
[1643470977390,1.45748865,95.265,95.192,0.25]
[1643470977789,1.45748865,95.263,95.192,0.25]
[1643470978695,1.45748865,95.264,95.192,0.25]
[1643470978891,1.45748865,95.265,95.192,0.25]
[1643470979490,1.45748865,95.266,95.192,0.25]
[1643470979692,1.45748865,95.265,95.192,0.25]
[1643470979994,1.45748865,95.267,95.192,0.25]
[1643470980192,39.07169516,95.274,95.192,0.25]
[1643470980193,1.45748865,95.265,95.192,0.25]
[1643470980792,1.45748865,95.262,95.192,0.25]
[1643470980994,1.45748865,95.26,95.192,0.25]
[1643470981596,1.45748865,95.264,95.193,2.57067232]
[1643470981792,1.45748865,95.264,95.195,104.9]
[1643470981993,0.25,95.263,95.193,2.57067232]
[1643470982193,0.25,95.263,95.176,1.45796844]
[1643470982394,1.45748865,95.243,95.15,1.45796844]
[1643470982595,1.45748865,95.234,95.141,17.17166844]
[1643470982797,1.45748865,95.232,95.141,15.7137]
[1643470982995,1.45748865,95.231,95.141,15.7137]
[1643470983194,1.45748865,95.233,95.141,15.7137]
[1643470983395,1.45748865,95.23,95.142,0.25]
[1643470983698,1.45748865,95.229,95.142,0.25]
[1643470983895,0.25,95.229,95.142,105.15]
[1643470984296,0.25,95.229,95.142,0.25]
[1643470984695,0.25,95.229,95.142,105.15]
[1643470984895,1.45748865,95.232,95.142,105.15]